[Event "Titled Tuesday Blitz July 4 Early 2023"]
[White "Tikhonov, Viacheslav"]
[Black "Marn, Jan"]
[WhiteFideId "44196407"]
[BlackFideId "14619245"]
[WhiteElo "2536"]
[BlackElo "2453"]
[Result "1/2-1/2"]
[Round "11"]
[TimeControl "180+2"]
[Date "2023.07.04"]
[WhiteClock "0:00:10"]
[BlackClock "0:00:06"]
[Board "84"]

1. d4 {[%clk 0:03:00]}  Nf6 {[%clk 0:02:57]} 2. c4 {[%clk 0:03:01]}  e6 {[%clk 0:02:57]} 3. Nf3 {[%clk 0:03:01]}  d5 {[%clk 0:02:57]} 4. g3 {[%clk 0:03:02]}  dxc4 {[%clk 0:02:54]} 5. Bg2 {[%clk 0:03:02]}  Nc6 {[%clk 0:02:50]} 6. O-O {[%clk 0:03:01]}  a6 {[%clk 0:02:51]} 7. Qc2 {[%clk 0:03:00]}  b5 {[%clk 0:02:43]} 8. Ne5 {[%clk 0:02:55]}  Nxd4 {[%clk 0:02:37]} 9. Qd1 {[%clk 0:02:46]}  Qd6 {[%clk 0:02:17]} 10. Bxa8 {[%clk 0:02:15]}  Qxe5 {[%clk 0:02:17]} 11. Nc3 {[%clk 0:02:01]}  Bc5 {[%clk 0:01:54]} 12. Bf4 {[%clk 0:01:49]}  Qh5 {[%clk 0:01:50]} 13. e3 {[%clk 0:01:35]}  Qxd1 {[%clk 0:00:51]} 14. Rfxd1 {[%clk 0:01:36]}  Nf5 {[%clk 0:00:50]} 15. Bc6+ {[%clk 0:01:31]}  Bd7 {[%clk 0:00:46]} 16. Bxd7+ {[%clk 0:01:31]}  Nxd7 {[%clk 0:00:46]} 17. Bxc7 {[%clk 0:01:31]}  Ke7 {[%clk 0:00:36]} 18. Ne4 {[%clk 0:01:23]}  Rc8 {[%clk 0:00:33]} 19. Nxc5 {[%clk 0:01:21]}  Nxc5 {[%clk 0:00:33]} 20. Ba5 {[%clk 0:01:17]}  Nd3 {[%clk 0:00:33]} 21. b3 {[%clk 0:01:08]}  Nd6 {[%clk 0:00:18]} 22. bxc4 {[%clk 0:01:05]}  bxc4 {[%clk 0:00:19]} 23. Rab1 {[%clk 0:01:02]}  e5 {[%clk 0:00:19]} 24. Bb4 {[%clk 0:00:59]}  e4 {[%clk 0:00:15]} 25. Bc3 {[%clk 0:00:58]}  Nb5 {[%clk 0:00:13]} 26. Bb4+ {[%clk 0:00:55]}  Ke6 {[%clk 0:00:12]} 27. a4 {[%clk 0:00:56]}  c3 {[%clk 0:00:10]} 28. axb5 {[%clk 0:00:55]}  c2 {[%clk 0:00:10]} 29. bxa6 {[%clk 0:00:41]}  Ra8 {[%clk 0:00:10]} 30. Bc3 {[%clk 0:00:38]}  Rxa6 {[%clk 0:00:08]} 31. Ra1 {[%clk 0:00:39]}  Rxa1 {[%clk 0:00:03]} 32. Rxa1 {[%clk 0:00:38]}  c1=Q+ {[%clk 0:00:04]} 33. Rxc1 {[%clk 0:00:39]}  Nxc1 {[%clk 0:00:05]} 34. Bxg7 {[%clk 0:00:39]}  f6 {[%clk 0:00:04]} 35. Bf8 {[%clk 0:00:39]}  Kf5 {[%clk 0:00:04]} 36. Kg2 {[%clk 0:00:38]}  Nd3 {[%clk 0:00:03]} 37. Ba3 {[%clk 0:00:37]}  Ne1+ {[%clk 0:00:03]} 38. Kf1 {[%clk 0:00:34]}  Nf3 {[%clk 0:00:03]} 39. h3 {[%clk 0:00:34]}  h5 {[%clk 0:00:03]} 40. Bb4 {[%clk 0:00:34]}  Kg6 {[%clk 0:00:02]} 41. Bc3 {[%clk 0:00:33]}  f5 {[%clk 0:00:02]} 42. Kg2 {[%clk 0:00:30]}  Ng5 {[%clk 0:00:03]} 43. Be5 {[%clk 0:00:26]}  Nf3 {[%clk 0:00:03]} 44. Bb2 {[%clk 0:00:24]}  Ng5 {[%clk 0:00:03]} 45. Be5 {[%clk 0:00:19]}  Nf3 {[%clk 0:00:03]} 46. Bf4 {[%clk 0:00:20]}  Nd2 {[%clk 0:00:03]} 47. Kg1 {[%clk 0:00:17]}  Nf3+ {[%clk 0:00:03]} 48. Kf1 {[%clk 0:00:18]}  Kf6 {[%clk 0:00:02]} 49. Bb8 {[%clk 0:00:16]}  Kg6 {[%clk 0:00:02]} 50. Bd6 {[%clk 0:00:16]}  Ng5 {[%clk 0:00:02]} 51. Kg2 {[%clk 0:00:13]}  Nf3 {[%clk 0:00:02]} 52. Ba3 {[%clk 0:00:13]}  Nd2 {[%clk 0:00:02]} 53. Bc1 {[%clk 0:00:13]}  Nf3 {[%clk 0:00:03]} 54. Kf1 {[%clk 0:00:10]}  Nh2+ {[%clk 0:00:03]} 55. Ke2 {[%clk 0:00:10]}  Nf3 {[%clk 0:00:03]} 56. h4 {[%clk 0:00:09]}  Nh2 {[%clk 0:00:03]} 57. Kd2 {[%clk 0:00:08]}  Nf3+ {[%clk 0:00:04]} 58. Kc3 {[%clk 0:00:08]}  Nh2 {[%clk 0:00:04]} 59. Bd2 {[%clk 0:00:08]}  Ng4 {[%clk 0:00:04]} 60. Be1 {[%clk 0:00:08]}  Nh2 {[%clk 0:00:04]} 61. Kd2 {[%clk 0:00:06]}  Nf3+ {[%clk 0:00:04]} 62. Ke2 {[%clk 0:00:07]}  Nh2 {[%clk 0:00:05]} 63. Bc3 {[%clk 0:00:07]}  Nf3 {[%clk 0:00:05]} 64. Kf1 {[%clk 0:00:07]}  Nh2+ {[%clk 0:00:05]} 65. Kg2 {[%clk 0:00:08]}  Nf3 {[%clk 0:00:05]} 66. Kf1 {[%clk 0:00:09]}  Nh2+ {[%clk 0:00:05]} 67. Ke2 {[%clk 0:00:09]}  Nf3 {[%clk 0:00:04]} 68. Bb4 {[%clk 0:00:10]}  Nh2 {[%clk 0:00:05]} 69. Ke1 {[%clk 0:00:10]}  Nf3+ {[%clk 0:00:05]} 70. Kf1 {[%clk 0:00:11]}  Nh2+ {[%clk 0:00:05]} 71. Kg2 {[%clk 0:00:12]}  Nf3 {[%clk 0:00:06]} 72. Bc3 {[%clk 0:00:13]}  Kf7 {[%clk 0:00:05]} 73. Kh3 {[%clk 0:00:13]}  Ke6 {[%clk 0:00:05]} 74. Bb4 {[%clk 0:00:12]}  Ne5 {[%clk 0:00:04]} 75. Bc3 {[%clk 0:00:11]}  Nf3 {[%clk 0:00:04]} 76. Kg2 {[%clk 0:00:12]}  Kd5 {[%clk 0:00:02]} 77. Bg7 {[%clk 0:00:11]}  Kc4 {[%clk 0:00:02]} 78. Bf6 {[%clk 0:00:12]}  Kd3 {[%clk 0:00:02]} 79. Bd8 {[%clk 0:00:12]}  Ke2 {[%clk 0:00:03]} 80. Ba5 {[%clk 0:00:11]}  Ne5 {[%clk 0:00:02]} 81. g4 {[%clk 0:00:08]}  Nxg4 {[%clk 0:00:02]} 82. Kg3 {[%clk 0:00:08]}  Nxf2 {[%clk 0:00:03]} 83. Kf4 {[%clk 0:00:09]}  Nd1 {[%clk 0:00:02]} 84. Kxf5 {[%clk 0:00:09]}  Nxe3+ {[%clk 0:00:03]} 85. Kg5 {[%clk 0:00:10]}  Ng2 {[%clk 0:00:03]} 86. Kxh5 {[%clk 0:00:10]}  Kf3 {[%clk 0:00:04]} 87. Bb6 {[%clk 0:00:09]}  e3 {[%clk 0:00:04]} 88. Bxe3 {[%clk 0:00:09]}  Kxe3 {[%clk 0:00:05]} 89. Kg5 {[%clk 0:00:10]}  Nxh4 {[%clk 0:00:06]} 1/2-1/2


[Site "https://www.chess.com"]

[Event "Titled Tuesday Blitz July 4 Early 2023"]
[White "Frolyanov, Dmitry"]
[Black "GAO"]
[WhiteFideId "4151976"]
[WhiteElo "2526"]
[BlackElo "2420"]
[Result "1-0"]
[Round "11"]
[TimeControl "180+2"]
[Date "2023.07.04"]
[WhiteClock "0:00:59"]
[BlackClock "0:00:00"]
[Board "87"]

1. d4 {[%clk 0:03:00]}  Nf6 {[%clk 0:02:58]} 2. c4 {[%clk 0:03:00]}  e6 {[%clk 0:02:57]} 3. Nf3 {[%clk 0:03:00]}  Bb4+ {[%clk 0:02:56]} 4. Nbd2 {[%clk 0:02:57]}  d5 {[%clk 0:02:56]} 5. g3 {[%clk 0:02:55]}  O-O {[%clk 0:02:55]} 6. Bg2 {[%clk 0:02:56]}  dxc4 {[%clk 0:02:55]} 7. O-O {[%clk 0:02:54]}  b5 {[%clk 0:02:54]} 8. a4 {[%clk 0:02:47]}  c6 {[%clk 0:02:53]} 9. axb5 {[%clk 0:02:46]}  cxb5 {[%clk 0:02:53]} 10. Ng5 {[%clk 0:02:42]}  Nd5 {[%clk 0:02:50]} 11. e4 {[%clk 0:02:42]}  Nb6 {[%clk 0:02:07]} 12. Nxh7 {[%clk 0:02:37]}  Kxh7 {[%clk 0:02:04]} 13. Qh5+ {[%clk 0:02:27]}  Kg8 {[%clk 0:02:03]} 14. e5 {[%clk 0:02:28]}  Nd5 {[%clk 0:01:28]} 15. Ne4 {[%clk 0:02:25]}  Be7 {[%clk 0:01:18]} 16. Ng5 {[%clk 0:02:15]}  Bxg5 {[%clk 0:01:15]} 17. Bxg5 {[%clk 0:02:15]}  Qe8 {[%clk 0:01:10]} 18. Bf6 {[%clk 0:02:03]}  gxf6 {[%clk 0:00:22]} 19. exf6 {[%clk 0:02:04]}  Nxf6 {[%clk 0:00:17]} 20. Qg5+ {[%clk 0:02:03]}  Kh7 {[%clk 0:00:16]} 21. Qxf6 {[%clk 0:01:31]}  Rg8 {[%clk 0:00:16]} 22. Bxa8 {[%clk 0:01:28]}  Nd7 {[%clk 0:00:14]} 23. Be4+ {[%clk 0:01:23]}  Rg6 {[%clk 0:00:14]} 24. Bxg6+ {[%clk 0:01:14]}  fxg6 {[%clk 0:00:14]} 25. Rxa7 {[%clk 0:01:14]}  Kg8 {[%clk 0:00:12]} 26. Qh4 {[%clk 0:01:09]}  Nf8 {[%clk 0:00:08]} 27. Re7 {[%clk 0:01:01]}  Qc6 {[%clk 0:00:00]} 28. Qf6 {[%clk 0:00:59]} 1-0


[Site "https://www.chess.com"]

[Event "Titled Tuesday Blitz July 4 Early 2023"]
[White "Glavina, Pablo"]
[Black "Vyatkin, Dmitry"]
[WhiteFideId "100234"]
[BlackFideId "4171900"]
[WhiteElo "2398"]
[BlackElo "2517"]
[Result "1-0"]
[Round "11"]
[TimeControl "180+2"]
[Date "2023.07.04"]
[WhiteClock "0:01:10"]
[BlackClock "0:00:00"]
[Board "90"]

1. c4 {[%clk 0:02:57]}  g6 {[%clk 0:02:55]} 2. d4 {[%clk 0:02:57]}  Bg7 {[%clk 0:02:55]} 3. Nf3 {[%clk 0:02:57]}  Nf6 {[%clk 0:02:55]} 4. g3 {[%clk 0:02:58]}  O-O {[%clk 0:02:52]} 5. Bg2 {[%clk 0:02:58]}  Nc6 {[%clk 0:02:52]} 6. O-O {[%clk 0:02:58]}  d6 {[%clk 0:02:52]} 7. Nc3 {[%clk 0:02:57]}  a6 {[%clk 0:02:49]} 8. d5 {[%clk 0:02:57]}  Na5 {[%clk 0:02:47]} 9. b3 {[%clk 0:02:58]}  c5 {[%clk 0:02:41]} 10. dxc6 {[%clk 0:02:57]}  bxc6 {[%clk 0:02:35]} 11. Bg5 {[%clk 0:02:55]}  h6 {[%clk 0:02:29]} 12. Bf4 {[%clk 0:02:52]}  c5 {[%clk 0:02:17]} 13. Qd2 {[%clk 0:02:49]}  Kh7 {[%clk 0:02:10]} 14. Rac1 {[%clk 0:02:43]}  Bb7 {[%clk 0:02:09]} 15. Rfd1 {[%clk 0:02:41]}  Ne4 {[%clk 0:01:53]} 16. Nxe4 {[%clk 0:02:35]}  Bxe4 {[%clk 0:01:53]} 17. Ng5+ {[%clk 0:02:32]}  hxg5 {[%clk 0:01:52]} 18. Bxe4 {[%clk 0:02:31]}  d5 {[%clk 0:01:09]} 19. Bxd5 {[%clk 0:02:10]}  gxf4 {[%clk 0:01:09]} 20. Qxf4 {[%clk 0:01:59]}  Qb8 {[%clk 0:00:40]} 21. Qh4+ {[%clk 0:01:54]}  Kg8 {[%clk 0:00:39]} 22. Bxa8 {[%clk 0:01:51]}  Bf6 {[%clk 0:00:36]} 23. Qf4 {[%clk 0:01:36]}  Qxf4 {[%clk 0:00:33]} 24. gxf4 {[%clk 0:01:36]}  Rxa8 {[%clk 0:00:34]} 25. Rd7 {[%clk 0:01:37]}  Nc6 {[%clk 0:00:26]} 26. e3 {[%clk 0:01:37]}  Rc8 {[%clk 0:00:25]} 27. Rcd1 {[%clk 0:01:36]}  Kg7 {[%clk 0:00:25]} 28. R1d2 {[%clk 0:01:36]}  a5 {[%clk 0:00:20]} 29. Kg2 {[%clk 0:01:36]}  Bc3 {[%clk 0:00:12]} 30. R2d3 {[%clk 0:01:36]}  Bf6 {[%clk 0:00:12]} 31. Rb7 {[%clk 0:01:36]}  Nb4 {[%clk 0:00:11]} 32. Rd2 {[%clk 0:01:36]}  a4 {[%clk 0:00:10]} 33. bxa4 {[%clk 0:01:32]}  Ra8 {[%clk 0:00:10]} 34. Rc7 {[%clk 0:01:33]}  Rxa4 {[%clk 0:00:08]} 35. Rxc5 {[%clk 0:01:33]}  Nxa2 {[%clk 0:00:09]} 36. Rc8 {[%clk 0:01:31]}  Nc3 {[%clk 0:00:08]} 37. c5 {[%clk 0:01:32]}  Rc4 {[%clk 0:00:08]} 38. Rc2 {[%clk 0:01:31]}  e5 {[%clk 0:00:05]} 39. fxe5 {[%clk 0:01:30]}  Bxe5 {[%clk 0:00:04]} 40. c6 {[%clk 0:01:31]}  Kf6 {[%clk 0:00:04]} 41. f4 {[%clk 0:01:31]}  Bd6 {[%clk 0:00:03]} 42. Kf3 {[%clk 0:01:15]}  Ke7 {[%clk 0:00:03]} 43. e4 {[%clk 0:01:11]}  Rc5 {[%clk 0:00:00]} 44. e5 {[%clk 0:01:10]} 1-0


[Site "https://www.chess.com"]

[Event "Titled Tuesday Blitz July 4 Early 2023"]
[White "Kuznetsov, Mikhail"]
[Black "Estrada Nieto, Julian"]
[WhiteFideId "4117190"]
[BlackFideId "5101018"]
[WhiteElo "2411"]
[BlackElo "2532"]
[Result "1/2-1/2"]
[Round "11"]
[TimeControl "180+2"]
[Date "2023.07.04"]
[WhiteClock "0:00:03"]
[BlackClock "0:00:09"]
[Board "94"]

1. Nf3 {[%clk 0:02:57]}  d5 {[%clk 0:02:56]} 2. g3 {[%clk 0:02:57]}  Nf6 {[%clk 0:02:56]} 3. Bg2 {[%clk 0:02:57]}  c6 {[%clk 0:02:57]} 4. O-O {[%clk 0:02:57]}  Bg4 {[%clk 0:02:57]} 5. d4 {[%clk 0:02:56]}  Nbd7 {[%clk 0:02:57]} 6. Nbd2 {[%clk 0:02:56]}  e6 {[%clk 0:02:58]} 7. c3 {[%clk 0:02:56]}  Be7 {[%clk 0:02:57]} 8. Re1 {[%clk 0:02:56]}  O-O {[%clk 0:02:56]} 9. e4 {[%clk 0:02:54]}  dxe4 {[%clk 0:02:55]} 10. Nxe4 {[%clk 0:02:55]}  Nxe4 {[%clk 0:02:56]} 11. Rxe4 {[%clk 0:02:54]}  Nf6 {[%clk 0:02:56]} 12. Re1 {[%clk 0:02:54]}  Qb6 {[%clk 0:02:54]} 13. Qb3 {[%clk 0:02:52]}  Qxb3 {[%clk 0:02:46]} 14. axb3 {[%clk 0:02:53]}  Bxf3 {[%clk 0:02:42]} 15. Bxf3 {[%clk 0:02:52]}  a6 {[%clk 0:02:43]} 16. Be3 {[%clk 0:02:45]}  Rfd8 {[%clk 0:02:42]} 17. Ra5 {[%clk 0:02:37]}  Nd5 {[%clk 0:02:41]} 18. b4 {[%clk 0:02:32]}  Rac8 {[%clk 0:02:38]} 19. Raa1 {[%clk 0:02:29]}  g6 {[%clk 0:02:37]} 20. h4 {[%clk 0:02:26]}  h5 {[%clk 0:02:36]} 21. Kg2 {[%clk 0:02:24]}  Bf6 {[%clk 0:02:33]} 22. Bd2 {[%clk 0:02:13]}  Kg7 {[%clk 0:02:31]} 23. Red1 {[%clk 0:01:54]}  Rd7 {[%clk 0:02:25]} 24. Ra5 {[%clk 0:01:44]}  Rcd8 {[%clk 0:02:23]} 25. Be3 {[%clk 0:01:35]}  Nb6 {[%clk 0:02:14]} 26. Bg5 {[%clk 0:01:25]}  Nc4 {[%clk 0:02:02]} 27. Bxf6+ {[%clk 0:01:23]}  Kxf6 {[%clk 0:02:02]} 28. Ra2 {[%clk 0:01:23]}  Ke7 {[%clk 0:01:53]} 29. Be2 {[%clk 0:01:21]}  Nb6 {[%clk 0:01:52]} 30. Ra5 {[%clk 0:01:18]}  Kd6 {[%clk 0:01:42]} 31. Re5 {[%clk 0:01:10]}  Ke7 {[%clk 0:01:34]} 32. f4 {[%clk 0:01:02]}  Rd5 {[%clk 0:01:29]} 33. Bf3 {[%clk 0:00:45]}  R5d6 {[%clk 0:01:17]} 34. Rde1 {[%clk 0:00:42]}  Kf6 {[%clk 0:01:17]} 35. g4 {[%clk 0:00:34]}  hxg4 {[%clk 0:01:17]} 36. Bxg4 {[%clk 0:00:35]}  Rh8 {[%clk 0:01:14]} 37. Kg3 {[%clk 0:00:32]}  Nc4 {[%clk 0:01:12]} 38. R5e2 {[%clk 0:00:30]}  Rdd8 {[%clk 0:01:06]} 39. Bf3 {[%clk 0:00:04]}  Nd6 {[%clk 0:01:06]} 40. Bg4 {[%clk 0:00:04]}  Nf5+ {[%clk 0:01:04]} 41. Bxf5 {[%clk 0:00:04]}  gxf5 {[%clk 0:01:04]} 42. Kh3 {[%clk 0:00:04]}  Rdg8 {[%clk 0:01:02]} 43. Rg2 {[%clk 0:00:01]}  Rxg2 {[%clk 0:01:01]} 44. Kxg2 {[%clk 0:00:02]}  Rxh4 {[%clk 0:01:02]} 45. Kg3 {[%clk 0:00:03]}  Rg4+ {[%clk 0:00:59]} 46. Kf3 {[%clk 0:00:03]}  Rh4 {[%clk 0:00:56]} 47. Kg3 {[%clk 0:00:03]}  Rh8 {[%clk 0:00:51]} 48. c4 {[%clk 0:00:03]}  Rd8 {[%clk 0:00:49]} 49. Rd1 {[%clk 0:00:03]}  Ke7 {[%clk 0:00:46]} 50. Kf3 {[%clk 0:00:04]}  f6 {[%clk 0:00:44]} 51. b3 {[%clk 0:00:03]}  Rh8 {[%clk 0:00:43]} 52. Kg3 {[%clk 0:00:03]}  Kd6 {[%clk 0:00:43]} 53. Rd2 {[%clk 0:00:03]}  Rh1 {[%clk 0:00:43]} 54. Rd3 {[%clk 0:00:03]}  Rg1+ {[%clk 0:00:41]} 55. Kf2 {[%clk 0:00:03]}  Rg4 {[%clk 0:00:38]} 56. Kf3 {[%clk 0:00:02]}  Rh4 {[%clk 0:00:36]} 57. Kg3 {[%clk 0:00:02]}  Rh1 {[%clk 0:00:37]} 58. Kg2 {[%clk 0:00:03]}  Re1 {[%clk 0:00:36]} 59. Kf2 {[%clk 0:00:03]}  Re4 {[%clk 0:00:36]} 60. Kf3 {[%clk 0:00:03]}  Kc7 {[%clk 0:00:31]} 61. Rd1 {[%clk 0:00:03]}  Kb6 {[%clk 0:00:27]} 62. Rd2 {[%clk 0:00:01]}  a5 {[%clk 0:00:27]} 63. bxa5+ {[%clk 0:00:02]}  Kxa5 {[%clk 0:00:27]} 64. d5 {[%clk 0:00:03]}  exd5 {[%clk 0:00:20]} 65. cxd5 {[%clk 0:00:04]}  cxd5 {[%clk 0:00:20]} 66. Rxd5+ {[%clk 0:00:05]}  Kb4 {[%clk 0:00:20]} 67. Rxf5 {[%clk 0:00:05]}  Re6 {[%clk 0:00:19]} 68. Rd5 {[%clk 0:00:01]}  Rb6 {[%clk 0:00:19]} 69. f5 {[%clk 0:00:02]}  Kxb3 {[%clk 0:00:19]} 70. Ke4 {[%clk 0:00:01]}  Kc4 {[%clk 0:00:16]} 71. Rd7 {[%clk 0:00:02]}  Rb5 {[%clk 0:00:13]} 72. Rc7+ {[%clk 0:00:02]}  Kb4 {[%clk 0:00:11]} 73. Rf7 {[%clk 0:00:02]}  Rb6 {[%clk 0:00:10]} 74. Kd5 {[%clk 0:00:01]}  Kb5 {[%clk 0:00:09]} 75. Re7 {[%clk 0:00:02]}  Kb4 {[%clk 0:00:08]} 76. Re6 {[%clk 0:00:02]}  Rb5+ {[%clk 0:00:08]} 77. Ke4 {[%clk 0:00:02]}  b6 {[%clk 0:00:07]} 78. Rxf6 {[%clk 0:00:02]}  Kc5 {[%clk 0:00:07]} 79. Re6 {[%clk 0:00:02]}  Rb4+ {[%clk 0:00:08]} 80. Ke5 {[%clk 0:00:01]}  Rb1 {[%clk 0:00:08]} 81. f6 {[%clk 0:00:02]}  Re1+ {[%clk 0:00:08]} 82. Kf5 {[%clk 0:00:02]}  Rf1+ {[%clk 0:00:08]} 83. Kg6 {[%clk 0:00:02]}  b5 {[%clk 0:00:09]} 84. f7 {[%clk 0:00:02]}  Rxf7 {[%clk 0:00:08]} 85. Kxf7 {[%clk 0:00:02]}  b4 {[%clk 0:00:09]} 86. Re8 {[%clk 0:00:01]}  Kc4 {[%clk 0:00:09]} 87. Rc8+ {[%clk 0:00:02]}  Kd3 {[%clk 0:00:09]} 88. Ke6 {[%clk 0:00:03]}  b3 {[%clk 0:00:09]} 89. Kd5 {[%clk 0:00:03]}  b2 {[%clk 0:00:09]} 90. Rb8 {[%clk 0:00:03]}  Kc2 {[%clk 0:00:09]} 91. Rc8+ {[%clk 0:00:03]}  Kd2 {[%clk 0:00:09]} 92. Rb8 {[%clk 0:00:03]}  Kc2 {[%clk 0:00:09]} 93. Kc4 {[%clk 0:00:03]}  b1=Q {[%clk 0:00:09]} 94. Rxb1 {[%clk 0:00:03]}  Kxb1 {[%clk 0:00:09]} 1/2-1/2


[Site "https://www.chess.com"]

[Event "Titled Tuesday Blitz July 4 Early 2023"]
[White "Fernandez, Michael"]
[Black "Bilan, Danila"]
[WhiteFideId "5803560"]
[BlackFideId "24161918"]
[WhiteElo "2373"]
[BlackElo "2515"]
[Result "0-1"]
[Round "11"]
[TimeControl "180+2"]
[Date "2023.07.04"]
[WhiteClock "0:00:06"]
[BlackClock "0:00:05"]
[Board "97"]

1. c4 {[%clk 0:02:48]}  c6 {[%clk 0:02:59]} 2. g3 {[%clk 0:02:48]}  d5 {[%clk 0:03:00]} 3. Bg2 {[%clk 0:02:48]}  Nf6 {[%clk 0:03:01]} 4. Nf3 {[%clk 0:02:49]}  Bf5 {[%clk 0:03:01]} 5. cxd5 {[%clk 0:02:48]}  cxd5 {[%clk 0:03:02]} 6. Qb3 {[%clk 0:02:48]}  Qc8 {[%clk 0:02:59]} 7. Nc3 {[%clk 0:02:46]}  e6 {[%clk 0:03:00]} 8. d3 {[%clk 0:02:42]}  Nc6 {[%clk 0:02:59]} 9. O-O {[%clk 0:02:40]}  Be7 {[%clk 0:02:49]} 10. Bf4 {[%clk 0:02:39]}  O-O {[%clk 0:02:48]} 11. Rac1 {[%clk 0:02:31]}  Qd7 {[%clk 0:02:44]} 12. e4 {[%clk 0:02:19]}  Bg4 {[%clk 0:02:23]} 13. Ne5 {[%clk 0:02:03]}  Nxe5 {[%clk 0:02:17]} 14. Bxe5 {[%clk 0:02:03]}  dxe4 {[%clk 0:02:01]} 15. Nxe4 {[%clk 0:01:57]}  Nd5 {[%clk 0:01:51]} 16. Nc5 {[%clk 0:01:41]}  Bxc5 {[%clk 0:01:35]} 17. Rxc5 {[%clk 0:01:42]}  Rfc8 {[%clk 0:01:34]} 18. Rfc1 {[%clk 0:01:36]}  Rxc5 {[%clk 0:01:34]} 19. Rxc5 {[%clk 0:01:37]}  Rc8 {[%clk 0:01:34]} 20. Rxc8+ {[%clk 0:01:29]}  Qxc8 {[%clk 0:01:34]} 21. h3 {[%clk 0:01:27]}  Be2 {[%clk 0:01:25]} 22. Kh2 {[%clk 0:01:06]}  h6 {[%clk 0:01:14]} 23. Bd4 {[%clk 0:00:53]}  a6 {[%clk 0:00:56]} 24. Bxd5 {[%clk 0:00:33]}  exd5 {[%clk 0:00:56]} 25. Qxd5 {[%clk 0:00:34]}  Bxd3 {[%clk 0:00:56]} 26. Bxg7 {[%clk 0:00:31]}  Bf1 {[%clk 0:00:55]} 27. Bxh6 {[%clk 0:00:24]}  Qxh3+ {[%clk 0:00:48]} 28. Kg1 {[%clk 0:00:24]}  Qxh6 {[%clk 0:00:32]} 29. Qd8+ {[%clk 0:00:23]}  Kh7 {[%clk 0:00:26]} 30. Kxf1 {[%clk 0:00:23]}  Qc1+ {[%clk 0:00:23]} 31. Kg2 {[%clk 0:00:23]}  Qxb2 {[%clk 0:00:23]} 32. Qd5 {[%clk 0:00:23]}  Kg7 {[%clk 0:00:21]} 33. g4 {[%clk 0:00:19]}  b5 {[%clk 0:00:18]} 34. g5 {[%clk 0:00:17]}  a5 {[%clk 0:00:13]} 35. Kf3 {[%clk 0:00:15]}  a4 {[%clk 0:00:13]} 36. Ke4 {[%clk 0:00:08]}  Qxf2 {[%clk 0:00:06]} 37. Qxb5 {[%clk 0:00:08]}  Qxa2 {[%clk 0:00:06]} 38. Qe5+ {[%clk 0:00:08]}  Kg8 {[%clk 0:00:07]} 39. Qe8+ {[%clk 0:00:08]}  Kh7 {[%clk 0:00:06]} 40. Kf5 {[%clk 0:00:05]}  Qf2+ {[%clk 0:00:06]} 41. Kg4 {[%clk 0:00:06]}  Qg2+ {[%clk 0:00:05]} 42. Kh5 {[%clk 0:00:06]}  Qh3# {[%clk 0:00:05]} 0-1


[Site "https://www.chess.com"]

[Event "Titled Tuesday Blitz July 4 Early 2023"]
[White "Kovalevsky, Stanislav"]
[Black "Sovetbekova, Nurai"]
[WhiteFideId "13508598"]
[BlackFideId "13801910"]
[WhiteElo "2481"]
[BlackElo "2360"]
[Result "1-0"]
[Round "11"]
[TimeControl "180+2"]
[Date "2023.07.04"]
[WhiteClock "0:00:10"]
[BlackClock "0:00:04"]
[Board "100"]

1. c4 {[%clk 0:03:00]}  Nf6 {[%clk 0:02:53]} 2. Nc3 {[%clk 0:03:00]}  d5 {[%clk 0:02:47]} 3. cxd5 {[%clk 0:02:59]}  Nxd5 {[%clk 0:02:47]} 4. g3 {[%clk 0:02:59]}  Nxc3 {[%clk 0:02:42]} 5. bxc3 {[%clk 0:03:00]}  e6 {[%clk 0:02:35]} 6. Bg2 {[%clk 0:02:59]}  Be7 {[%clk 0:02:32]} 7. Nf3 {[%clk 0:02:59]}  O-O {[%clk 0:02:32]} 8. O-O {[%clk 0:02:58]}  c5 {[%clk 0:02:32]} 9. Rb1 {[%clk 0:02:57]}  Nc6 {[%clk 0:02:32]} 10. d3 {[%clk 0:02:55]}  Qc7 {[%clk 0:02:30]} 11. Bf4 {[%clk 0:02:53]}  e5 {[%clk 0:02:28]} 12. Bc1 {[%clk 0:02:46]}  Be6 {[%clk 0:02:24]} 13. c4 {[%clk 0:02:23]}  Rad8 {[%clk 0:02:18]} 14. Qa4 {[%clk 0:02:18]}  b6 {[%clk 0:02:15]} 15. Ne1 {[%clk 0:01:35]}  Nd4 {[%clk 0:02:06]} 16. Qd1 {[%clk 0:01:35]}  Bg4 {[%clk 0:02:03]} 17. f3 {[%clk 0:01:33]}  Be6 {[%clk 0:01:56]} 18. Nc2 {[%clk 0:01:29]}  Bf6 {[%clk 0:01:34]} 19. Ne3 {[%clk 0:01:13]}  Rfe8 {[%clk 0:01:28]} 20. a4 {[%clk 0:01:03]}  Nc6 {[%clk 0:01:15]} 21. Qe1 {[%clk 0:00:53]}  Qd7 {[%clk 0:01:06]} 22. f4 {[%clk 0:00:42]}  exf4 {[%clk 0:01:03]} 23. gxf4 {[%clk 0:00:40]}  Bd4 {[%clk 0:01:01]} 24. Kh1 {[%clk 0:00:40]}  Bh3 {[%clk 0:00:55]} 25. Bxh3 {[%clk 0:00:22]}  Qxh3 {[%clk 0:00:54]} 26. Rf3 {[%clk 0:00:22]}  Qh5 {[%clk 0:00:46]} 27. Qg3 {[%clk 0:00:21]}  Ne7 {[%clk 0:00:35]} 28. Bb2 {[%clk 0:00:20]}  Nf5 {[%clk 0:00:20]} 29. Nxf5 {[%clk 0:00:18]}  Qxf5 {[%clk 0:00:20]} 30. Bxd4 {[%clk 0:00:14]}  Rxd4 {[%clk 0:00:19]} 31. e4 {[%clk 0:00:13]}  Qh5 {[%clk 0:00:17]} 32. Rg1 {[%clk 0:00:12]}  g6 {[%clk 0:00:17]} 33. f5 {[%clk 0:00:13]}  Red8 {[%clk 0:00:15]} 34. fxg6 {[%clk 0:00:13]}  hxg6 {[%clk 0:00:15]} 35. h3 {[%clk 0:00:10]}  Kg7 {[%clk 0:00:14]} 36. Rgf1 {[%clk 0:00:10]}  R8d7 {[%clk 0:00:14]} 37. Kh2 {[%clk 0:00:10]}  Qh6 {[%clk 0:00:12]} 38. Qe5+ {[%clk 0:00:09]}  Kh7 {[%clk 0:00:11]} 39. Rxf7+ {[%clk 0:00:09]}  Rxf7 {[%clk 0:00:10]} 40. Rxf7+ {[%clk 0:00:10]}  Kg8 {[%clk 0:00:04]} 41. Qe8+ {[%clk 0:00:10]} 1-0


[Site "https://www.chess.com"]

[Event "Titled Tuesday Blitz July 4 Early 2023"]
[White "VoicelessFeather"]
[Black "Balla, Tamas-Kristof"]
[BlackFideId "1208497"]
[WhiteElo "2242"]
[BlackElo "2466"]
[Result "1-0"]
[Round "11"]
[TimeControl "180+2"]
[Date "2023.07.04"]
[WhiteClock "0:01:53"]
[BlackClock "0:00:50"]
[Board "102"]

1. e4 {[%clk 0:03:00]}  c5 {[%clk 0:03:00]} 2. Nf3 {[%clk 0:03:01]}  Nc6 {[%clk 0:03:00]} 3. Bb5 {[%clk 0:03:01]}  Nf6 {[%clk 0:02:59]} 4. e5 {[%clk 0:03:00]}  Nd5 {[%clk 0:02:59]} 5. Nc3 {[%clk 0:02:59]}  Nc7 {[%clk 0:02:57]} 6. Bxc6 {[%clk 0:02:59]}  dxc6 {[%clk 0:02:57]} 7. O-O {[%clk 0:02:57]}  g6 {[%clk 0:02:57]} 8. d4 {[%clk 0:02:57]}  cxd4 {[%clk 0:02:57]} 9. Nxd4 {[%clk 0:02:56]}  Bg7 {[%clk 0:02:56]} 10. f4 {[%clk 0:02:52]}  O-O {[%clk 0:02:55]} 11. Be3 {[%clk 0:02:51]}  Ne6 {[%clk 0:02:34]} 12. Nf3 {[%clk 0:02:49]}  Qa5 {[%clk 0:02:27]} 13. Qe2 {[%clk 0:02:43]}  b6 {[%clk 0:02:24]} 14. Rfd1 {[%clk 0:02:36]}  Ba6 {[%clk 0:02:22]} 15. Qf2 {[%clk 0:02:36]}  Rad8 {[%clk 0:02:21]} 16. a3 {[%clk 0:02:35]}  b5 {[%clk 0:01:50]} 17. Bxa7 {[%clk 0:02:31]}  Rxd1+ {[%clk 0:01:30]} 18. Rxd1 {[%clk 0:02:30]}  b4 {[%clk 0:01:31]} 19. Bb6 {[%clk 0:02:26]}  Qxb6 {[%clk 0:01:07]} 20. Qxb6 {[%clk 0:02:24]}  bxc3 {[%clk 0:01:07]} 21. Qxa6 {[%clk 0:02:24]}  cxb2 {[%clk 0:01:08]} 22. Qb6 {[%clk 0:02:17]}  Nxf4 {[%clk 0:01:05]} 23. Qxb2 {[%clk 0:02:14]}  f6 {[%clk 0:01:03]} 24. Qb3+ {[%clk 0:02:12]}  Kh8 {[%clk 0:01:03]} 25. e6 {[%clk 0:02:02]}  h5 {[%clk 0:01:02]} 26. g3 {[%clk 0:02:00]}  Nd5 {[%clk 0:00:59]} 27. c4 {[%clk 0:01:57]}  Nc7 {[%clk 0:00:58]} 28. Qb7 {[%clk 0:01:54]}  Nxe6 {[%clk 0:00:50]} 29. Qxe7 {[%clk 0:01:53]} 1-0


[Site "https://www.chess.com"]